fUSD/lending_fUSD_20251025
["ID","MTS","AMOUNT","RATE_DAILY","PERIOD"]
[392395170,1761427832142,-944.02,0.00031029,2]
[392395171,1761427832151,-839.07,0.00031196,7]
[392395172,1761427832160,-202.29,0.00031248,3]
[392395173,1761427832169,-212.85,0.00031275,2]
[392395174,1761427832178,-277.35679052,0.00031355,2]
[392395175,1761427832187,-151.0,0.00031355,2]
[392395176,1761427832196,-3070.41,0.00031374,2]
[392395177,1761427832205,-476.4830027,0.0003187,2]
[392395178,1761427832215,-1468.49081502,0.0003187,2]
[392395179,1761427832224,-1065.44022405,0.00031878,2]
[392395180,1761427832233,-151.0,0.00031903,2]
[392395181,1761427832242,-747.95115896,0.00031931,2]
[392395182,1761427832251,-2500.0,0.00031941,2]
[392395183,1761427832260,-322.6107,0.00031951,2]
[392395184,1761427832269,-200.0,0.00031951,2]
[392395185,1761427832278,-500.0,0.00031951,2]
[392395188,1761427832287,-250.0,0.00031951,2]
[392395191,1761427832297,-500.0,0.00031951,2]
[392395193,1761427832306,-500.0,0.00031951,2]
[392395195,1761427832428,-250.0,0.00031951,2]
[392395196,1761427832437,-500.0,0.00031951,2]
[392395197,1761427832446,-500.0,0.00031951,2]
[392395198,1761427832454,-250.0,0.00031951,2]
[392395199,1761427832464,-500.0,0.00031951,2]
[392395200,1761427832475,-500.0,0.00031951,2]
[392395201,1761427832485,-250.0,0.00031951,2]
[392395202,1761427832494,-500.0,0.00031951,2]
[392395203,1761427832504,-500.0,0.00031951,2]
[392395204,1761427832513,-250.0,0.00031951,2]
[392395205,1761427832522,-500.0,0.00031951,2]
[392395206,1761427832531,-500.0,0.00031951,2]
[392395207,1761427832540,-250.0,0.00031951,2]
[392395208,1761427832549,-500.0,0.00031951,2]
[392395209,1761427832558,-500.0,0.00031951,2]
[392395210,1761427832567,-500.0,0.00031951,2]
[392395211,1761427832575,-500.0,0.00031951,2]
[392395212,1761427832590,-250.0,0.00031951,2]
[392395213,1761427832600,-500.0,0.00031951,2]
[392395214,1761427832610,-500.0,0.00031951,2]
[392395215,1761427832620,-500.0,0.00031951,2]
[392395216,1761427832629,-250.0,0.00031951,2]
[392395217,1761427832638,-500.0,0.00031951,2]
[392395218,1761427832647,-500.0,0.00031951,2]
[392395219,1761427832656,-250.0,0.00031951,2]
[392395220,1761427832665,-500.0,0.00031951,2]
[392395221,1761427832674,-250.0,0.00031951,2]
[392395222,1761427832683,-500.0,0.00031951,2]
[392395223,1761427832692,-500.0,0.00031951,2]
[392395224,1761427832701,-500.0,0.00031951,2]
[392395225,1761427832710,-250.0,0.00031951,2]
[392395226,1761427832719,-250.0,0.00031951,2]
[392395227,1761427832731,-500.0,0.00031951,2]
[392395228,1761427832740,-500.0,0.00031951,2]
[392395229,1761427832749,-500.0,0.00031951,2]
[392395230,1761427832758,-250.0,0.00031951,2]
[392395231,1761427832767,-250.0,0.00031951,2]
[392395232,1761427832776,-500.0,0.00031951,2]
[392395233,1761427832785,-500.0,0.00031951,2]
[392395234,1761427832796,-250.0,0.00031951,2]
[392395235,1761427832805,-500.0,0.00031951,2]
[392395236,1761427832814,-268.82144481,0.00031951,2]
[392395237,1761427832823,-500.0,0.00031951,2]
[392395238,1761427832832,-500.0,0.00031951,2]
[392395239,1761427832841,-574.12855637,0.00031951,2]
[392395240,1761427832850,-500.0,0.00031951,2]
[392395241,1761427832859,-151.0,0.00031951,2]
[392395242,1761427832868,-151.0,0.00031951,2]
[392395243,1761427832877,-151.0,0.00031951,2]
[392395244,1761427832886,-200.0,0.00031951,2]
[392395245,1761427832896,-151.0,0.00031951,2]
[392395246,1761427832904,-151.0,0.00031951,2]
[392395247,1761427832914,-151.0,0.00031951,2]
[392395248,1761427832923,-151.0,0.00031951,2]
[392395249,1761427832932,-151.0,0.00031951,2]
[392395250,1761427832941,-500.0,0.00031951,2]
[392395251,1761427832950,-151.0,0.00031951,2]
[392395252,1761427832959,-500.0,0.00031951,2]
[392395253,1761427832968,-500.0,0.00031951,2]
[392395254,1761427832977,-250.0,0.00031951,2]
[392395255,1761427832986,-500.0,0.00031951,2]
[392395256,1761427832994,-250.0,0.00031951,2]
[392395257,1761427833004,-250.0,0.00031951,2]
[392395258,1761427833013,-250.0,0.00031951,2]
[392395259,1761427833022,-500.0,0.00031951,2]
[392395260,1761427833031,-250.0,0.00031951,2]
[392395261,1761427833041,-250.0,0.00031951,2]
[392395262,1761427833050,-500.0,0.00031951,2]
[392395263,1761427833059,-250.0,0.00031951,2]
[392395264,1761427833068,-200.0,0.00031951,2]
[392395265,1761427833077,-500.0,0.00031951,2]
[392395266,1761427833087,-250.0,0.00031951,2]
[392395267,1761427833096,-250.0,0.00031951,2]
[392395268,1761427833105,-250.0,0.00031951,2]
[392395269,1761427833115,-151.0,0.00031951,2]
[392395270,1761427833124,-500.0,0.00031951,2]
[392395271,1761427833133,-260.86984494,0.00031951,2]
[392395272,1761427833143,-250.0,0.00031951,2]
[392395273,1761427833152,-250.0,0.00031951,2]
[392395274,1761427833161,-151.0,0.00031951,2]
[392395275,1761427833170,-500.0,0.00031951,2]
[392395276,1761427833179,-250.0,0.00031951,2]
[392395277,1761427833189,-250.0,0.00031951,2]
[392395278,1761427833198,-151.0,0.00031951,2]
[392395279,1761427833208,-500.0,0.00031951,2]
[392395280,1761427833217,-250.0,0.00031951,2]
[392395281,1761427833226,-250.0,0.00031951,2]
[392395282,1761427833234,-500.0,0.00031951,2]
[392395283,1761427833243,-151.0,0.00031951,2]
[392395284,1761427833252,-250.0,0.00031951,2]
[392395285,1761427833261,-250.0,0.00031951,2]
[392395286,1761427833270,-250.0,0.00031951,2]
[392395287,1761427833279,-151.0,0.00031951,2]
[392395288,1761427833289,-250.0,0.00031951,2]
[392395289,1761427833299,-250.0,0.00031951,2]
[392395290,1761427833308,-151.0,0.00031951,2]
[392395291,1761427833317,-250.0,0.00031951,2]
[392395292,1761427833326,-151.0,0.00031951,2]
[392395293,1761427833335,-265.34328611,0.00031951,2]
[392395294,1761427833348,-250.0,0.00031951,2]
[392395295,1761427833357,-151.0,0.00031951,2]
[392395296,1761427833366,-151.0,0.00031951,2]
[392395297,1761427833375,-151.0,0.00031951,2]
[392395298,1761427833384,-151.0,0.00031951,2]
[392395299,1761427833394,-250.0,0.00031951,2]
[392395300,1761427833403,-250.0,0.00031951,2]
[392395301,1761427833413,-250.0,0.00031951,2]
[392395302,1761427833422,-250.0,0.00031951,2]
[392395303,1761427833433,-250.0,0.00031951,2]
[392395304,1761427833442,-250.0,0.00031951,2]
[392395305,1761427833451,-250.0,0.00031951,2]
[392395306,1761427833460,-250.0,0.00031951,2]
[392395307,1761427833469,-250.0,0.00031951,2]
[392395308,1761427833478,-250.0,0.00031951,2]
[392395309,1761427833488,-250.0,0.00031951,2]
[392395310,1761427833497,-218.18353472,0.00031969,2]
[392395311,1761427833507,-260.26066958,0.00031969,2]
[392395312,1761427833516,-558.61069072,0.00031969,2]
[392395313,1761427833525,-1000.0,0.00031969,2]
[392395314,1761427833535,-48854.9425068,0.0003197,2]
[392395315,1761427833545,-1554.6593373,0.0003197,2]
[392395316,1761427833554,-44566.99914534,0.0003197,2]
[392395317,1761427833571,-26773.22584994,0.0003197,2]
[392395318,1761427833582,-2224.96562575,0.0003197,2]
[392395319,1761427833593,-586.80506096,0.0003197,2]
[392395320,1761427833604,-699.36702806,0.0003197,2]
[392395321,1761427833616,-400.21913805,0.0003197,2]
[392395322,1761427833625,-535.8061815,0.0003197,2]
[392395323,1761427833636,-1911.50401791,0.0003197,2]
[392395324,1761427833647,-2205.88592063,0.0003197,2]
[392395325,1761427833658,-23159.19971156,0.0003197,2]
[392395326,1761427833669,-4368.50172863,0.0003197,2]
[392395327,1761427833680,-1040.87008417,0.0003197,2]
[392395328,1761427833690,-151.0,0.0003197,30]
[392395329,1761427833699,-151.0,0.0003197,30]
[392395330,1761427833708,-151.0,0.0003197,30]
[392395331,1761427833718,-151.0,0.0003197,30]
[392395332,1761427833727,-130.90613531,0.0003197,30]
[392395333,1761427833742,-20.09386469,0.0003197,30]
[392395334,1761427833752,-151.0,0.0003197,30]
[392395335,1761427833761,-500.0,0.00031973,5]
[392395336,1761427833771,-247.2961628,0.00031973,5]
[392395337,1761427833780,-245.109039,0.00031973,5]
[392395338,1761427833791,-254.890961,0.00031973,5]
[392395339,1761427833800,-393.56024574,0.00031973,3]
[392395340,1761427833811,-111.95972738,0.00031973,3]
[392395341,1761427833819,-462.11065713,0.00031973,5]
[392395342,1761427837671,-150.0,0.00029157,2]
[392395343,1761427837681,-37.88934287,0.00031973,5]
[392395344,1761427837690,-500.0,0.00031973,5]
[392395345,1761427837699,-1383.30899053,0.00032,120]
[392395346,1761427837708,-239.58867816,0.00032,120]
[392395347,1761427837717,-347.84102377,0.00032041,2]
[392395348,1761427837728,-1244.15897623,0.00032041,2]
[392395349,1761427837738,-1312.0,0.00032041,2]
[392395350,1761427837748,-606.0,0.00032041,2]
[392395351,1761427837757,-1270.0,0.00032041,2]
[392395352,1761427837766,-802.16168945,0.00032041,2]
[392395353,1761427837785,-15.83831055,0.00032041,2]
[392395354,1761427837795,-903.0,0.00032041,2]
[392395355,1761427837803,-1185.0,0.00032041,2]
[392395356,1761427837814,-572.0,0.00032041,2]
[392395357,1761427837825,-253.66463944,0.00032041,2]
[392395358,1761427837837,-565.33536056,0.00032041,2]
[392395359,1761427837846,-1285.59576654,0.00032041,2]
[392395360,1761427837857,-780.00000001,0.00032041,2]
[392395361,1761427837873,-3058.02622672,0.00032041,2]
[392395362,1761427837884,-1459.37800673,0.00032041,2]
[392395363,1761427837894,-1815.08925486,0.00032041,2]
[392395364,1761427837906,-1672.91074514,0.00032041,2]
[392395366,1761427837915,-151.0,0.00032041,30]
[392395368,1761427837923,-236.739464,0.00032041,30]
[392395370,1761427837931,-151.0,0.00032041,30]
[392395372,1761427837940,-151.0,0.00032041,30]
[392395373,1761427837949,-10414.39961313,0.0003205,2]
[392395375,1761427837957,-151.0,0.0003205,30]
[392395377,1761427837966,-685.7702,0.00032079,2]
[392395379,1761427837975,-279.1196,0.00032079,2]
[392395381,1761427837984,-1000.0,0.00032079,2]
[392395382,1761427837992,-1578.09519558,0.00032079,2]
[392395383,1761427838001,-170.74964824,0.00032079,2]
[392395384,1761427838010,-160.02458894,0.00032079,15]
[392395385,1761427838020,-500.0,0.00032082,2]
[392395386,1761427838030,-236.739464,0.00032159,30]
[392395387,1761427838039,-151.0,0.00032168,30]
[392395388,1761427838050,-46416.58132869,0.00032169,3]
[392395389,1761427838062,-15379.80987876,0.00032169,3]
[392395390,1761427838074,-13094.79807065,0.00032169,3]
[392395391,1761427838084,-500.0,0.00032173,5]
[392395392,1761427838093,-491.20163411,0.00032173,5]
[392395393,1761427838104,-8.79836589,0.00032173,5]
[392395394,1761427838114,-500.0,0.00032173,5]
[392395395,1761427838122,-500.0,0.00032173,5]
[392395396,1761427838132,-501.66466946,0.00032173,5]
[392395397,1761427838141,-501.36193517,0.00032173,5]
[392395398,1761427838151,-500.0,0.00032173,5]
[392395399,1761427838160,-200.0,0.00032173,5]
[392395400,1761427838169,-337.60636155,0.00032173,5]
[392395401,1761427838181,-162.39363845,0.00032173,5]
[392395402,1761427838190,-500.0,0.00032173,5]
[392395403,1761427838200,-376.42655144,0.00032173,5]
[392395404,1761427838211,-134.30404794,0.00032173,5]
[392395405,1761427838220,-501.2098633,0.00032173,5]
[392395406,1761427838230,-500.0,0.00032173,5]
[392395407,1761427838239,-500.0,0.00032173,5]
[392395408,1761427838248,-368.48608876,0.00032173,5]
[392395409,1761427838267,-133.7335151,0.00032173,5]
[392395410,1761427838276,-160.25037245,0.00032173,2]
[392395411,1761427838285,-500.0,0.00032178,2]
[392395412,1761427838295,-500.0,0.00032178,9]
[392395413,1761427838304,-3523.91341854,0.00032179,2]
[392395414,1761427838316,-3911.1029026,0.00032179,2]
[392395416,1761427840050,-126442.53032997,0.00032179,2]
[392395417,1761427840218,-586.53527116,0.00032179,2]
[392395422,1761427843698,-213.065518,0.0003197,30]
[392395423,1761427843708,-213.065518,0.0003197,30]
[392395424,1761427843717,-116.13575724,0.0003197,30]
[392395425,1761427843728,-96.92976076,0.0003197,30]
[392395426,1761427843738,-213.065518,0.0003197,30]
[392395427,1761427843747,-213.065518,0.0003197,30]
[392395428,1761427843756,-3.96580191,0.0003197,30]
[392395429,1761427843869,-14.17151444,0.0003197,30]
[392395442,1761427846049,-194.92820165,0.0003197,30]
[392395443,1761427846059,-213.065518,0.0003197,30]
[392395444,1761427846068,-213.065518,0.0003197,30]
[392395445,1761427846077,-834.9675749,0.00032041,2]
[392395475,1761427862969,500.0,0.00036925,50]
[392395478,1761427870376,476.31,0.00013699,2]
[392395483,1761427935226,500.0,0.00036925,50]
[392395515,1761427974741,631.87,0.00031302,120]
[392395524,1761428062915,150.0,0.0003135,120]
[392395551,1761428163669,500.0,0.00036922,50]
[392395608,1761428343176,205.00561564,0.00036922,120]
[392395876,1761428976568,1110.0,0.00036922,50]
[392396017,1761429031926,-476.31,0.00020187,2]
[392396018,1761429031937,-330.50144307,0.00022206,2]
[392396019,1761429031947,-250.04029443,0.00023342,2]
[392396020,1761429031959,-249.95970557,0.00023342,2]
[392396021,1761429031968,-1037.72134012,0.00024137,2]
[392396022,1761429031978,-80.82591546,0.00024493,2]
[392396023,1761429031990,-374.17408454,0.00024493,2]
[392396024,1761429032000,-500.0,0.00024932,2]
[392396025,1761429032009,-15.55364901,0.00025087,2]
[392396026,1761429032023,-157.66635099,0.00025087,2]
[392396027,1761429032035,-476.31,0.00026676,2]
[392396028,1761429032044,-500.0,0.00028247,2]
[392396029,1761429032053,-13.30648144,0.00028902,2]
[392396030,1761429032065,-237.37657372,0.00028902,2]
[392396031,1761429032074,-615.34059385,0.00030541,2]
[392396032,1761429032090,-819.06940615,0.00030541,2]
[392396033,1761429032103,-200.0,0.00030737,2]
[392396034,1761429032112,-730.99517317,0.00030769,2]
[392396035,1761429032130,-469.00482683,0.00030769,2]
[392396036,1761429032139,-1000.0,0.00030771,2]
[392396037,1761429032149,-1658.33,0.00030841,2]
[392396038,1761429032158,-1168.334,0.00031172,28]
[392396039,1761429032167,-1936.69077277,0.00031172,2]
[392396040,1761429032182,-3133.03609757,0.00031172,2]
[392396041,1761429032206,-1222.44595172,0.00031172,2]
[392396042,1761429032215,-300.0,0.00031251,2]
[392396044,1761429032224,-500.0,0.00031252,2]
[392396045,1761429032233,-500.0,0.00031252,2]
[392396047,1761429032242,-500.0,0.00031252,2]
[392396049,1761429032252,-500.0,0.00031252,2]
[392396051,1761429032261,-500.0,0.00031252,2]
[392396053,1761429032270,-573.21060322,0.00031252,2]
[392396055,1761429032279,-200.0,0.00031252,2]
[392396056,1761429032291,-200.0,0.00031252,2]
[392396058,1761429032300,-200.0,0.00031252,2]
[392396060,1761429032309,-151.0,0.00031252,2]
[392396062,1761429032318,-151.0,0.00031252,2]
[392396064,1761429032328,-151.0,0.00031252,2]
[392396066,1761429032337,-151.0,0.00031252,2]
[392396068,1761429032346,-151.0,0.00031252,2]
[392396070,1761429032356,-151.0,0.00031252,2]
[392396072,1761429032364,-151.0,0.00031252,2]
[392396074,1761429032374,-151.0,0.00031252,2]
[392396076,1761429032383,-151.0,0.00031252,2]
[392396078,1761429032392,-151.0,0.00031252,2]
[392396080,1761429032402,-151.0,0.00031252,2]
[392396082,1761429032411,-500.0,0.0003127,2]
[392396084,1761429032420,-350.16905462,0.0003127,2]
[392396087,1761429032429,-19011.54,0.00031271,2]
[392396090,1761429032438,-322.6107,0.00031276,2]
[392396094,1761429032447,-500.0,0.00031276,2]
[392396097,1761429032457,-250.0,0.00031276,2]
[392396100,1761429032466,-574.12855637,0.00031276,2]
[392396103,1761429032475,-500.0,0.00031276,2]
[392396106,1761429032486,-250.0,0.00031276,2]
[392396107,1761429032495,-500.0,0.00031276,2]
[392396108,1761429032504,-250.0,0.00031276,2]
[392396109,1761429032513,-500.0,0.00031276,2]
[392396110,1761429032522,-250.0,0.00031276,2]
[392396111,1761429032531,-500.0,0.00031276,2]
[392396112,1761429032540,-500.0,0.00031276,2]
[392396113,1761429032549,-250.0,0.00031276,2]
[392396114,1761429032558,-500.0,0.00031276,2]
[392396115,1761429032567,-500.0,0.00031276,2]
[392396116,1761429032576,-250.0,0.00031276,2]
[392396117,1761429032585,-250.0,0.00031276,2]
[392396118,1761429032594,-500.0,0.00031276,2]
[392396119,1761429032603,-591.74589922,0.00031276,2]
[392396120,1761429032612,-250.0,0.00031276,2]
[392396121,1761429032621,-250.0,0.00031276,2]
[392396122,1761429032630,-500.0,0.00031276,2]
[392396123,1761429032639,-250.0,0.00031276,2]
[392396124,1761429032648,-500.0,0.00031276,2]
[392396125,1761429032659,-250.0,0.00031276,2]
[392396126,1761429032673,-250.0,0.00031276,2]
[392396127,1761429032682,-500.0,0.00031276,2]
[392396128,1761429032690,-250.0,0.00031276,2]
[392396129,1761429032699,-250.0,0.00031276,2]
[392396130,1761429032708,-500.0,0.00031276,2]
[392396131,1761429032717,-250.0,0.00031276,2]
[392396132,1761429032726,-250.0,0.00031276,2]
[392396133,1761429032736,-500.0,0.00031276,2]
[392396134,1761429032744,-250.0,0.00031276,2]
[392396136,1761429032753,-211.34086981,0.00031276,2]
[392396137,1761429032763,-277.35679052,0.00031276,2]
[392396140,1761429032772,-500.0,0.00031276,2]
[392396142,1761429032781,-500.0,0.00031276,2]
[392396143,1761429032791,-500.0,0.00031276,2]
[392396145,1761429032800,-500.0,0.00031276,2]
[392396147,1761429032810,-152.39457394,0.00031276,2]
[392396150,1761429032819,-500.0,0.00031276,2]
[392396152,1761429032829,-500.0,0.00031276,2]
[392396153,1761429032838,-500.0,0.00031276,2]
[392396156,1761429032848,-500.0,0.00031276,2]
[392396157,1761429032857,-500.0,0.00031276,2]
[392396159,1761429032867,-500.0,0.00031276,2]
[392396162,1761429032884,-500.0,0.00031276,2]
[392396165,1761429032896,-250.0,0.00031276,2]
[392396166,1761429032906,-250.0,0.00031276,2]
[392396169,1761429032915,-250.0,0.00031276,2]
[392396171,1761429032925,-250.0,0.00031276,2]
[392396173,1761429032935,-250.0,0.00031276,2]
[392396175,1761429032944,-203.53374226,0.00031276,2]
[392396177,1761429032954,-150.0,0.00031295,2]
[392396179,1761429032963,-200.0,0.00031321,2]
[392396181,1761429032972,-1852.42,0.00031345,2]
[392396183,1761429032982,-1004.13099059,0.00031348,2]
[392396185,1761429032991,-150.0,0.0003135,2]
[392396187,1761429033000,-1000.0,0.0003135,2]
[392396189,1761429033010,-500.0,0.00031425,2]
[392396191,1761429033019,-476.4830027,0.00031526,2]
[392396206,1761429033032,-2047.91,0.00031576,2]
[392396208,1761429033161,-200.0,0.000318,2]
[392396210,1761429033170,-200.0,0.000318,2]
[392396212,1761429033180,-595.37131296,0.00031824,2]
[392396214,1761429033189,-7141.24550528,0.00031825,2]
[392396216,1761429033199,-2347.8813,0.0003187,2]
[392396218,1761429033209,-1106.64719242,0.00032,120]
[392396220,1761429033218,-2000.0,0.000321,2]
[392396222,1761429033227,-2054.0,0.00032108,2]
[392396224,1761429033237,-3414.0,0.00032108,2]
[392396226,1761429033246,-572.0,0.00032108,2]
[392396228,1761429033256,-819.0,0.00032108,2]
[392396230,1761429033265,-606.0,0.00032108,2]
[392396232,1761429033274,-1592.0,0.00032108,2]
[392396234,1761429033284,-1312.0,0.00032108,2]
[392396236,1761429033293,-1185.0,0.00032108,2]
[392396238,1761429033302,-903.0,0.00032108,2]
[392396240,1761429033311,-818.0,0.00032108,2]
[392396242,1761429033321,-1270.0,0.00032108,2]
[392396244,1761429033330,-6583.0,0.00032108,2]
[392396246,1761429033339,-3488.0,0.00032108,2]
[392396248,1761429033348,-6458.0,0.00032108,2]
[392396250,1761429033357,-17528.871118,0.00032171,2]
[392396252,1761429033367,-10474.6445484,0.00032171,2]
[392396254,1761429033376,-16134.1623001,0.00032171,2]
[392396256,1761429033385,-1622.26514,0.00032179,2]
[392396258,1761429033399,-944.02,0.00032192,2]
[392396260,1761429033408,-168.0,0.00032273,2]
[392396262,1761429033418,-166.7,0.00032313,2]
[392396264,1761429033428,-200.0,0.00032348,2]
[392396266,1761429033438,-200.0,0.00032348,2]
[392396268,1761429033448,-617.40005154,0.00032372,2]
[392396270,1761429033457,-503.6,0.00032426,30]
[392396272,1761429033466,-270.0,0.00032501,2]
[392396274,1761429033476,-1769.0,0.000326,5]
[392396276,1761429033486,-334.5472959,0.00032645,2]
[392396278,1761429033496,-287.61899177,0.00032645,2]
[392396280,1761429033505,-1321.6417335,0.00032675,2]
[392396282,1761429033515,-2500.0,0.00032676,2]
[392396284,1761429033524,-1000.0,0.00032756,2]
[392396286,1761429033533,-1000.0,0.00032766,2]
[392396288,1761429033543,-152.7284743,0.00032775,2]
[392396290,1761429033553,-182.1824687,0.00032775,2]
[392396293,1761429033563,-5000.0,0.00032776,2]
[392396294,1761429033574,-34475.36462072,0.00032776,2]
[392396297,1761429033588,-17855.16827928,0.00032776,2]
[392396299,1761429033599,-163.36877924,0.00032776,2]
[392396301,1761429033610,-9411.80089894,0.00032776,2]
[392396303,1761429033619,-151.0,0.00032776,30]
[392396305,1761429033629,-151.0,0.00032776,30]
[392396307,1761429033641,-400.0,0.000328,11]
[392396309,1761429033650,-1000.0,0.00032818,2]
[392396311,1761429033660,-200.0,0.00032849,2]
[392396313,1761429033668,-500.0,0.00032855,9]
[392396315,1761429033678,-168.91,0.00032856,2]
[392396317,1761429033688,-168.91,0.00032856,2]
[392396320,1761429033709,-153.398964,0.00032856,30]
[392396323,1761429033726,-5424.34071334,0.00032866,2]
[392396327,1761429033748,-21867.72109921,0.00032866,2]
[392396330,1761429033772,-32718.16284721,0.00032866,2]
[392396409,1761429037810,-544.38170658,0.00032108,2]
[392396417,1761429037976,-13.61829342,0.00032108,2]
[392396418,1761429037985,-664.80947016,0.00032866,2]
[392396419,1761429037996,-440.12852468,0.00032866,2]
[392396420,1761429038008,-14056.59841389,0.00032866,2]
[392396421,1761429038019,-370.53,0.00032866,2]
[392396422,1761429038037,-793.94970221,0.00032866,2]
[392396449,1761429040002,-151.0,0.00032776,30]
[392396450,1761429040013,-76073.5114663,0.00032866,2]
[392396451,1761429040024,-12641.8285882,0.00032866,2]
[392396452,1761429040036,-168.91,0.00032866,2]
[392396453,1761429040045,-168.91,0.00032866,2]
[392396454,1761429040055,-151.0,0.00032866,30]
[392396455,1761429040064,-151.0,0.00032866,30]
[392396456,1761429040073,-500.0,0.00032873,5]
[392396457,1761429040082,-500.0,0.00032873,5]
[392396458,1761429040092,-500.0,0.00032873,2]
[392396459,1761429040101,-150.86475471,0.00032873,5]
[392396460,1761429040110,-500.0,0.00032873,5]
[392396461,1761429040120,-500.0,0.00032873,5]
[392396462,1761429040129,-500.0,0.00032873,5]
[392396463,1761429040138,-500.0,0.00032873,5]
[392396464,1761429040148,-504.74798052,0.00032873,5]
[392396465,1761429040157,-500.0,0.00032873,2]
[392396466,1761429040166,-500.0,0.00032873,5]
[392396467,1761429040175,-504.0463364,0.00032873,5]
[392396468,1761429040187,-500.0,0.00032873,5]
[392396469,1761429040197,-500.0,0.00032873,5]
[392396470,1761429040209,-500.0,0.00032873,5]
[392396471,1761429040218,-155.0,0.00032875,2]
[392396472,1761429040227,-500.0,0.00032875,9]
[392396473,1761429040238,-500.0,0.00032875,120]
[392396474,1761429040248,-1000.0,0.00032875,120]
[392396475,1761429040257,-502.03114775,0.00032876,9]
[392396476,1761429040266,-151.667609,0.00032876,9]
[392396477,1761429040275,-152.637141,0.00032876,9]
[392396478,1761429040285,-175.908366,0.00032876,9]
[392396479,1761429040296,-152.637139,0.00032876,9]
[392396480,1761429040305,-151.66761,0.00032876,9]
[392396481,1761429040316,-165.56081,0.00032876,9]
[392396482,1761429040326,-910.887729,0.00032876,9]
[392396483,1761429040335,-567.385756,0.00032876,9]
[392396484,1761429040346,-500.0,0.00032876,9]
[392396485,1761429040356,-500.0,0.00032876,9]
[392396486,1761429040365,-501.18347276,0.00032876,9]
[392396487,1761429040374,-501.07102737,0.00032876,9]
[392396488,1761429040383,-502.13548877,0.00032876,9]
[392396489,1761429040392,-500.0,0.00032876,9]
[392396490,1761429040401,-502.32923693,0.00032876,9]
[392396491,1761429040410,-500.0,0.00032876,9]
[392396492,1761429040420,-500.0,0.00032876,9]
[392396493,1761429040429,-500.0,0.00032876,9]
[392396494,1761429040438,-500.0,0.00032876,9]
[392396495,1761429040447,-500.0,0.00032876,9]
[392396496,1761429040457,-749.14,0.00032876,9]
[392396497,1761429040466,-500.0,0.00032876,9]
[392396498,1761429040475,-500.0,0.00032876,9]
[392396499,1761429040484,-500.0,0.00032876,9]
[392396500,1761429040493,-500.0,0.00032876,9]
[392396501,1761429040502,-500.0,0.00032876,9]
[392396502,1761429040512,-500.0,0.00032876,9]
[392396503,1761429040521,-500.0,0.00032876,9]
[392396504,1761429040530,-500.0,0.00032876,9]
[392396505,1761429040539,-500.0,0.00032876,9]
[392396506,1761429040548,-500.0,0.00032876,9]
[392396507,1761429040557,-500.0,0.00032876,9]
[392396508,1761429040567,-500.0,0.00032876,9]
[392396509,1761429040576,-500.0,0.00032876,9]
[392396510,1761429040585,-500.0,0.00032876,9]
[392396511,1761429040596,-565.26,0.00032876,9]
[392396512,1761429040606,-500.0,0.00032876,9]
[392396513,1761429040617,-500.0,0.00032876,9]
[392396514,1761429040626,-599.04,0.00032876,9]
[392396515,1761429040635,-500.0,0.00032876,9]
[392396516,1761429040645,-500.0,0.00032876,9]
[392396517,1761429040654,-500.0,0.00032876,9]